bitfinex/quotes_ETHUSD_20220119
["timestamp","ask_amount","ask_price","bid_price","bid_amount"]
[1642562011065,0.99195071,3153.2,3152.8,0.00113685]
[1642562011262,0.99195071,3153.2,3152.4,0.00341054]
[1642562011463,0.79336,3152.9,3152.4,0.00341054]
[1642562011663,1.09336,3152.9,3152.3,1.44900194]
[1642562011865,1.09336,3152.9,3152.4,0.00341054]
[1642562012566,0.793372,3152.7,3152.3,0.00397896]
[1642562012763,1.586732,3152.7,3152.6,0.01157671]
[1642562013013,1.586732,3152.7,3152.3,0.00397896]
[1642562013218,1.586732,3152.7,3152.6,0.00227369]
[1642562013416,1.586732,3152.7,3152.1,0.00511581]
[1642562013618,0.79338,3152.6,3152.1,0.00511581]
[1642562013816,0.79338,3152.6,3151.9,0.00625266]
[1642562013817,1.2968469,3152.5,3151.9,0.00625266]
[1642562014117,2.0902769,3152.5,3151.9,0.00625266]
[1642562014718,0.7934,3152.4,3151.9,0.00625266]
[1642562015617,2.38022,3152.5,3152.4,1.58679999]
[1642562016017,2.38022,3152.5,3152.4,1.59021053]
[1642562016219,1.58679,3152.5,3152.4,1.59021053]
[1642562019071,0.79331,3152.6,3152.4,1.59021053]
[1642562019474,0.79331,3152.6,3152.5,0.00284212]
[1642562019873,0.79331,3152.6,3152.5,2.6972028]
[1642562021922,3.99331,3152.6,3152.5,2.6972028]
[1642562022721,3.99331,3152.6,3152.5,5.4972028]
[1642562023324,3.99331,3152.6,3152.5,7.1785798]
[1642562023921,3.99331,3152.6,3152.5,5.4972028]
[1642562024160,3.70271,3152.6,3152.5,7.15708303]
[1642562024364,3.70271,3152.6,3152.5,5.4972028]
[1642562025769,3.70271,3152.6,3152.5,7.16944007]
[1642562025965,3.70271,3152.6,3152.5,5.4972028]
[1642562026165,3.70271,3152.6,3152.5,7.16873454]
[1642562026567,3.70271,3152.6,3152.5,5.4972028]
[1642562026765,3.70271,3152.6,3152.5,7.15389031]
[1642562026965,3.70271,3152.6,3152.5,5.4972028]
[1642562028212,3.70271,3152.6,3152.5,7.15242135]
[1642562028418,3.70271,3152.6,3152.5,5.4972028]
[1642562029219,3.40821,3152.6,3152.5,5.4972028]
[1642562030620,1.5865,3152.9,3152.7,0.90256074]
[1642562030819,1.5865,3152.9,3152.8,2.69436068]
[1642562031423,1.5865,3152.9,3152.8,4.0724136]
[1642562032065,4.7865,3152.9,3152.8,4.0724136]
[1642562032764,4.7865,3152.9,3152.8,2.69436068]
[1642562034369,4.4882,3152.9,3152.8,2.69436068]
[1642562034770,6.07489,3152.9,3152.8,2.69436068]
[1642562039676,5.77369,3152.9,3152.8,2.69436068]
[1642562040477,4.187,3152.9,3152.8,2.69436068]
[1642562043415,3.2,3152.9,3152.8,2.69436068]
[1642562044919,2.8965,3152.9,3152.8,2.69436068]
[1642562045317,2.88852043,3152.9,3152.8,2.69436068]
[1642562048972,3.68179043,3152.9,3152.8,2.69436068]
[1642562049971,3.38329043,3152.9,3152.8,2.69436068]
[1642562055069,3.08829043,3152.9,3152.8,2.69436068]
[1642562060127,2.79589043,3152.9,3152.8,2.69436068]
[1642562065072,2.50379043,3152.9,3152.8,2.69436068]
[1642562069872,2.80379043,3152.9,3152.8,2.69436068]
[1642562070374,2.50379043,3152.9,3152.8,2.69436068]
[1642562072280,2.80379043,3152.9,3152.8,2.69436068]
[1642562072479,2.80379043,3152.9,3152.8,4.40917096]
[1642562072480,2.50379043,3152.9,3152.8,4.40917096]
[1642562072678,1.71052043,3152.9,3152.8,4.40917096]
[1642562072920,1.71052043,3152.9,3152.8,2.69436068]
[1642562073317,1.71052043,3152.9,3152.8,7.59436068]
[1642562074519,1.71052043,3152.9,3152.8,2.69436068]
[1642562074721,2.50375043,3152.9,3152.8,2.69436068]
[1642562075522,2.20545043,3152.9,3152.8,2.69436068]
[1642562077767,2.50545043,3152.9,3152.8,2.69436068]
[1642562078970,2.20545043,3152.9,3152.8,2.69436068]
[1642562080617,1.90735043,3152.9,3152.8,2.69436068]
[1642562083817,2.20735043,3152.9,3152.8,2.69436068]
[1642562085673,1.91205043,3152.9,3152.8,2.69436068]
[1642562085871,1.90735043,3152.9,3152.8,2.69436068]
[1642562090823,1.60985043,3152.9,3152.8,2.69436068]
[1642562094071,0.79323,3152.9,3152.8,2.69436068]
[1642562095073,1.09323,3152.9,3152.8,2.69436068]
[1642562095822,0.79323,3152.9,3152.8,2.69436068]
[1642562100172,0.79323,3152.9,3152.8,4.34579516]
[1642562100376,0.79323,3152.9,3152.8,4.36936068]
[1642562100574,1.91158588,3153.0,3152.8,4.36936068]
[1642562100774,1.91158588,3153.0,3152.9,4.3514195]
[1642562100978,1.91158588,3153.0,3152.9,2.69436068]
[1642562100979,1.61788588,3153.0,3152.9,2.69436068]
[1642562101174,1.61788588,3153.0,3152.8,2.69436068]
[1642562101375,1.61788588,3153.0,3152.9,2.69436068]
[1642562101775,2.41112588,3153.0,3152.9,2.69436068]
[1642562101977,2.41112588,3153.0,3152.9,2.59436068]
[1642562102177,1.58658,3152.9,3152.7,0.90256074]
[1642562102377,2.3798675,3152.9,3152.7,0.90256074]
[1642562103021,0.79329,3152.8,3152.7,0.90256074]
[1642562103419,0.79329,3152.8,3152.7,0.90426601]
[1642562105825,2.07146957,3152.8,3152.7,0.90426601]
[1642562106025,1.77556957,3152.8,3152.7,0.90426601]
[1642562106673,0.79351,3152.6,3152.4,1.58679999]
[1642562106873,3.17403,3152.6,3152.4,1.58679999]
[1642562107074,3.17403,3152.6,3152.5,0.00113685]
[1642562107475,3.17403,3152.6,3152.4,1.58679999]
[1642562109281,0.04909838,3152.5,3152.4,1.58679999]
[1642562111119,2.13451838,3152.6,3152.5,2.8]
[1642562111719,1.58702,3152.7,3152.5,5.6057659]
[1642562111720,0.79351,3152.7,3152.5,5.6057659]
[1642562111921,1.58891572,3153.1,3152.6,2.17622803]
[1642562111923,1.11830718,3153.0,3152.6,2.17622803]
[1642562112122,1.11830718,3153.0,3152.6,2.47622803]
[1642562112321,0.00113685,3152.7,3152.6,2.47622803]
[1642562112719,0.00113685,3152.7,3152.6,7.22622803]
[1642562114778,0.00113685,3152.7,3152.6,8.22622803]
[1642562114978,0.00113685,3152.7,3152.6,2.47622803]
[1642562115179,0.00113685,3152.7,3152.5,1.12929532]
[1642562115378,0.79440685,3152.7,3152.5,1.12929532]
[1642562115578,0.79440685,3152.7,3152.5,1.42929532]
[1642562116178,0.50200685,3152.7,3152.5,1.42929532]
[1642562117180,0.50200685,3152.7,3152.5,0.3]
[1642562117380,0.50200685,3152.7,3152.4,1.88679999]
[1642562117580,0.50200685,3152.7,3152.4,3.49858]
[1642562118221,0.79331,3152.6,3152.4,3.49858]
[1642562118425,0.79331,3152.6,3152.4,1.88679999]
[1642562118426,2.37992,3152.6,3152.4,1.88679999]
[1642562118725,2.37992,3152.6,3152.4,3.49858]
[1642562119126,2.37992,3152.6,3152.4,1.91178001]
[1642562119525,2.37992,3152.6,3152.3,1.91178001]
[1642562119727,2.37992,3152.6,3152.4,1.61178001]
[1642562119926,2.37992,3152.6,3152.3,1.61178001]
[1642562120327,2.37992,3152.6,3152.2,3.09107401]
[1642562120328,3.1732509,3152.6,3152.2,3.09107401]
[1642562120725,3.1732509,3152.6,3152.3,1.61291685]
[1642562121329,3.1732509,3152.6,3152.3,0.00113684]
[1642562121330,2.8752509,3152.6,3152.3,0.00113684]
[1642562121780,2.08192,3152.6,3152.3,0.00113684]
[1642562121982,2.08192,3152.6,3152.3,2.69546309]
[1642562122180,2.08192,3152.6,3152.4,2.69432625]
[1642562122382,2.08192,3152.6,3152.5,2.69432625]
[1642562122781,2.08192,3152.6,3152.3,0.00113684]
[1642562122980,2.08192,3152.6,3152.3,2.69546309]
[1642562123280,2.08192,3152.6,3152.4,2.69432625]
[1642562123481,2.08192,3152.6,3152.5,2.69432625]
[1642562123882,2.8752424,3152.6,3152.5,5.74432625]
[1642562125087,2.8752424,3152.6,3152.5,5.74433993]
[1642562126319,2.5856424,3152.6,3152.5,5.74433993]
[1642562126723,2.5856424,3152.6,3152.5,5.69433993]
[1642562127324,1.79232,3152.6,3152.5,7.41165116]
[1642562128722,1.79232,3152.6,3152.5,4.41165116]
[1642562128924,1.79232,3152.6,3152.5,2.69433993]
[1642562129375,1.79232,3152.6,3152.4,2.69433993]
[1642562129573,1.79232,3152.6,3152.5,2.69433993]
[1642562130173,1.79232,3152.6,3152.4,2.69433993]
[1642562130376,1.79232,3152.6,3152.5,1.64830132]
[1642562130575,1.79232,3152.6,3152.5,4.34264125]
[1642562130777,1.79232,3152.6,3152.5,2.69433993]
[1642562130977,1.79232,3152.6,3152.4,2.69433993]
[1642562131390,1.50042,3152.6,3152.5,1.69403892]
[1642562131579,1.50042,3152.6,3152.5,4.38837885]
[1642562135523,0.70711,3152.6,3152.5,9.78837885]
[1642562135725,2.37977,3153.4,3152.6,6.05]
[1642562135923,1.58598,3153.8,3152.7,23.33277993]
[1642562136124,0.00170527,3153.0,3152.8,9.34762984]
[1642562136424,3.65980284,3154.2,3152.9,11.04433993]
[1642562136674,3.65980284,3154.2,3153.0,2.69433993]
[1642562136675,2.3790835,3153.9,3153.0,2.69433993]
[1642562136873,0.79303,3153.8,3153.1,2.0]
[1642562137073,0.79303,3153.8,3153.2,2.69433993]
[1642562137272,0.00568423,3153.7,3153.2,2.99433993]
[1642562137473,1.59429705,3153.7,3153.3,2.69433993]
[1642562137677,0.79828101,3153.6,3153.3,2.69433993]
[1642562137874,3.86932663,3153.5,3153.3,2.69433993]
[1642562138073,2.02061328,3153.4,3152.8,1.1694]
[1642562138275,3.61116224,3153.4,3152.8,1.1694]
[1642562138476,0.00341054,3153.3,3152.8,1.1694]
[1642562138676,0.7932985,3153.2,3152.8,1.1694]
[1642562138878,0.79614062,3153.2,3152.8,1.1694]
[1642562139076,0.79614062,3153.2,3152.6,6.8223]
[1642562139077,0.79557369,3153.1,3152.6,3.431]
[1642562139277,2.38218369,3153.1,3152.6,3.431]
[1642562139478,0.00170527,3153.0,3152.6,3.431]
[1642562139879,0.00113685,3152.9,3152.6,0.3]
[1642562140079,0.79447685,3152.9,3152.5,0.00113685]
[1642562140281,1.58668,3152.8,3152.5,0.00113685]
[1642562140522,1.58665,3152.7,3152.4,0.30170527]
[1642562140821,1.58665,3152.7,3152.5,0.00113685]
[1642562141220,0.79335,3152.6,3152.5,0.00113685]
[1642562141421,0.79335,3152.6,3152.5,4.15113685]
[1642562141620,0.50005,3152.6,3152.5,6.35113685]
[1642562142221,1.58665,3152.7,3152.5,6.35113685]
[1642562143426,0.79334,3152.9,3152.5,6.35113685]
[1642562144027,0.79334,3152.9,3152.5,4.32619685]
[1642562144676,0.79334,3152.9,3152.6,1.0]
[1642562146674,0.50064,3152.9,3152.6,1.0]
[1642562147075,0.00170527,3153.0,3152.6,1.0]
[1642562147277,0.00170527,3153.0,3152.6,6.65328991]
[1642562147475,0.00113685,3152.9,3152.7,0.15844]
[1642562147777,0.00170527,3153.0,3152.7,0.15844]
[1642562148219,0.00113685,3152.9,3152.7,0.15844]
[1642562148421,0.00113685,3152.9,3152.7,4.1999499]
[1642562148620,0.00170527,3153.0,3152.8,7.20844]
[1642562148921,1.58851188,3153.9,3152.9,21.233204]
[1642562149121,1.58851188,3153.9,3153.0,5.0415099]
[1642562149323,0.00284212,3153.2,3153.1,6.8429]
[1642562149622,0.00284212,3153.2,3153.1,27.7659]
[1642562149922,0.79286,3154.1,3153.1,31.8074099]
[1642562150126,0.79286,3154.1,3153.8,0.3]
[1642562150323,0.0073895,3154.0,3153.8,0.3]
[1642562150526,0.0073895,3154.0,3153.2,23.5215099]
[1642562150724,0.00682108,3153.9,3153.7,0.3]
[1642562151125,0.00625266,3153.8,3153.7,0.6]
[1642562151321,0.00625266,3153.8,3153.7,0.3]
[1642562151771,1.2986618,3154.5,3153.7,6.35]
[1642562151970,1.2986618,3154.5,3153.7,6.65]
[1642562152170,1.2986618,3154.5,3153.7,7.78882358]
[1642562152171,0.00341054,3154.4,3153.7,7.78882358]
[1642562152372,0.00341054,3154.4,3153.7,6.65]
[1642562152573,0.00284211,3154.3,3153.8,1.12607495]
[1642562152775,0.00284211,3154.3,3153.8,2.12607495]
[1642562152975,0.00227369,3154.2,3153.8,2.12607495]
[1642562153178,0.00227369,3154.2,3153.9,2.69343322]
[1642562153376,0.00170527,3154.1,3154.0,1.42744354]
[1642562153575,0.00170527,3154.1,3154.0,5.12087676]
[1642562153776,0.00170527,3154.1,3154.0,6.34499269]
[1642562153975,0.00170527,3154.1,3154.0,6.50343269]
[1642562154175,0.00170527,3154.1,3154.0,29.02314496]
[1642562154576,5.27e-06,3154.1,3154.0,27.79902903]
[1642562155920,5.27e-06,3154.1,3154.0,28.59169483]
[1642562156923,8.95920527,3155.6,3154.3,0.79259]
[1642562157125,8.95920527,3155.6,3154.4,4.91415393]
[1642562157424,0.00795793,3155.5,3154.5,3.48603242]
[1642562157624,0.00795793,3155.5,3154.6,5.0302948]
[1642562157825,0.0073895,3155.4,3154.7,2.69343322]
[1642562158025,0.8000395,3155.4,3154.8,1.83419394]
[1642562158227,0.00682108,3155.3,3154.8,2.13419394]
[1642562158725,0.00625266,3155.2,3154.8,2.13419394]
[1642562158926,0.00625266,3155.2,3154.9,2.69259501]
[1642562159176,0.00568423,3155.1,3155.0,1.99186991]
[1642562159380,0.00568423,3155.1,3155.0,5.34186991]
[1642562159580,0.00568423,3155.1,3155.0,3.35]
[1642562160887,0.00568423,3155.1,3155.0,4.82774735]
[1642562161083,0.00568423,3155.1,3155.0,3.35]
[1642562161285,0.00568423,3155.1,3155.0,4.78815757]
[1642562161485,0.00568423,3155.1,3155.0,3.35]
[1642562161884,1.303637,3156.0,3155.1,6.05]
[1642562162284,0.00454739,3155.9,3155.1,6.05]
[1642562162486,0.79707739,3155.9,3155.2,1.40075302]
[1642562162785,0.00397897,3155.8,3155.2,1.40075302]
[1642562163026,0.00397897,3155.8,3155.2,1.70075302]
[1642562163227,2.096137,3156.0,3155.2,1.70075302]
[1642562163228,0.00341054,3155.7,3155.2,1.70075302]
[1642562163432,0.00341054,3155.7,3155.2,2.70075302]
[1642562163627,0.00284212,3155.6,3155.2,2.70075302]
[1642562163828,0.00284212,3155.6,3155.3,1.27974432]
[1642562164027,0.0022737,3155.5,3155.4,1.64325379]
[1642562164229,0.0022737,3155.5,3155.4,7.69325379]
[1642562164430,0.00625266,3155.5,3155.4,6.35]
[1642562164632,0.00625266,3155.5,3155.4,7.9816026]
[1642562165432,0.00625266,3155.5,3155.4,6.35]
[1642562166231,0.00625266,3155.5,3155.4,0.3]
[1642562166881,0.00625266,3155.5,3155.3,1.57974432]
[1642562167081,1.58515,3156.0,3155.4,5.9]
[1642562167283,1.58515,3156.0,3155.4,5.90454739]
[1642562167484,0.79255,3156.1,3155.5,0.00397896]
[1642562167485,1.58515,3156.1,3155.5,0.00397896]
[1642562167681,1.58730159,3156.3,3155.5,0.00397896]
[1642562168082,0.00113685,3156.4,3155.5,0.00397896]
[1642562168685,0.79244,3156.3,3155.5,0.00397896]
[1642562169083,0.79244,3156.3,3155.5,1.00397896]
[1642562169284,0.79244,3156.3,3155.5,1.30397896]
[1642562169486,0.79244,3156.3,3155.6,0.00341054]
[1642562169885,0.79253,3156.0,3155.6,0.00341054]
[1642562170084,0.79253,3156.0,3155.6,0.30341054]
[1642562170425,0.79253,3156.0,3155.7,0.00284212]
[1642562170826,0.79253,3156.0,3155.5,0.00397896]
[1642562171526,0.79258,3155.9,3155.5,0.00397896]
[1642562171728,0.79258,3155.8,3155.5,0.00397896]
[1642562172126,0.49648,3155.8,3155.5,0.00397896]
[1642562173627,1.28906,3155.8,3155.5,0.00397896]
[1642562173930,1.28906,3155.8,3155.3,0.00511581]
[1642562174775,1.28906,3155.8,3155.3,0.30511581]
[1642562175176,2.0817,3155.8,3155.4,0.00454739]
[1642562176175,1.28906,3155.8,3155.4,0.00454739]
[1642562177175,0.99596,3155.8,3155.4,0.00454739]
[1642562178029,0.49648,3155.8,3155.4,0.00454739]
[1642562178326,0.00113685,3156.4,3155.4,0.00454739]
[1642562179331,0.00113685,3156.4,3155.4,0.79696459]
[1642562179531,0.00113685,3156.4,3156.2,1.09339525]
[1642562179932,0.00113685,3156.4,3156.2,1.39339525]
[1642562181131,0.00113685,3156.4,3156.3,4.5]
[1642562181531,0.00113685,3156.4,3156.3,2.5]
[1642562181972,0.00113685,3156.4,3156.3,6.05]
[1642562182374,2.37722,3157.3,3156.4,6.05]
[1642562182375,0.79224,3157.1,3156.4,6.05]
[1642562182573,0.79224,3157.1,3156.4,6.35]
[1642562182775,0.79227,3157.0,3156.4,6.35]
[1642562183175,0.00284211,3156.9,3156.4,6.35]
[1642562183375,0.00284211,3156.9,3156.5,1.8438914]
[1642562183578,0.00227369,3156.8,3156.5,1.8438914]
[1642562183976,0.00170527,3156.7,3156.5,1.8438914]
[1642562184179,0.00170527,3156.7,3156.4,6.35]
[1642562184381,0.00113684,3156.6,3156.4,6.35]
[1642562184778,0.79516211,3156.9,3156.4,6.35]
[1642562184978,0.79232,3156.8,3156.5,1.12449777]
[1642562185178,0.79459369,3156.8,3156.2,1.39339525]
[1642562185425,0.00170527,3156.7,3156.2,1.39339525]
[1642562185823,0.00113684,3156.6,3156.2,1.39339525]
[1642562186223,0.00170527,3156.7,3156.2,1.39339525]
[1642562186625,0.00113684,3156.6,3156.2,1.39339525]
[1642562187029,0.00170527,3156.7,3156.2,1.39339525]
[1642562187227,0.79236,3156.6,3156.2,0.3]
[1642562187428,0.79236,3156.6,3156.1,2.3211896]
[1642562187429,0.50049684,3156.6,3156.1,1.3]
[1642562187826,0.50049684,3156.6,3156.2,0.00113685]
[1642562188727,0.00113684,3156.6,3156.2,0.00113685]
[1642562189280,0.79353684,3156.6,3156.2,0.00113685]
[1642562189878,0.79353684,3156.6,3156.1,1.10113685]
[1642562190079,0.79353684,3156.6,3156.0,2.29589997]
[1642562190279,0.00170527,3156.5,3156.0,3.61384334]
[1642562190679,0.00113685,3156.4,3156.0,3.61384334]
[1642562191386,0.00113685,3156.4,3156.0,4.70620554]
[1642562192682,0.49513685,3156.5,3156.1,6.05]
[1642562192933,0.49513685,3156.5,3156.2,1.81067344]
[1642562193137,0.49513685,3156.5,3156.1,0.30170527]
[1642562193138,1.28754685,3156.5,3156.1,0.00170527]
[1642562194441,2.08003685,3156.5,3156.1,0.00170527]
[1642562196140,5.28003685,3156.5,3156.1,0.30170527]
[1642562196542,5.28003685,3156.5,3156.2,0.00113685]
[1642562197774,4.98003685,3156.5,3156.2,0.00113685]
[1642562199579,1.0,3156.4,3156.2,0.00113685]
[1642562199778,0.7927,3156.2,3155.7,2.69208641]
[1642562199981,0.7927,3156.2,3155.7,2.69606538]
[1642562199982,0.7927,3156.1,3155.7,2.69606538]
[1642562200178,0.7927,3156.1,3155.8,2.69549695]
[1642562200425,0.7927,3156.1,3155.8,0.00341054]
[1642562200625,0.7927,3156.1,3155.0,1.82099442]
[1642562200626,0.7927,3156.1,3155.9,0.00284212]
[1642562200827,0.7927,3156.1,3155.1,2.69958938]
[1642562201028,0.7927,3156.1,3155.0,3.51220044]
[1642562201029,0.79269,3155.9,3155.2,4.39926589]
[1642562201231,0.79269,3155.7,3155.3,2.69219987]
[1642562201428,0.79269,3155.7,3155.3,2.69845253]
[1642562201727,0.79269,3155.7,3155.4,2.69788411]
[1642562201928,3.655,3156.5,3155.5,2.69219987]
[1642562202227,0.79258,3156.1,3155.6,0.00454739]
[1642562202429,0.79258,3156.1,3155.7,2.69219987]
[1642562202629,0.79258,3156.1,3155.7,2.99219987]
[1642562202826,0.50018,3156.1,3155.8,2.69561041]
[1642562203228,0.50018,3156.1,3155.9,0.00284212]
[1642562203428,1.29271,3156.1,3155.9,0.00284212]
[1642562204682,2.0853511,3156.1,3155.9,0.00284212]
[1642562205082,2.0853511,3156.1,3155.8,0.00341054]
[1642562205284,6.0780711,3156.1,3155.8,0.00341054]
[1642562205482,8.14303879,3156.1,3155.8,0.00341054]
[1642562205681,0.79272,3155.9,3155.1,0.00738951]
[1642562205882,0.79272,3155.9,3154.9,1.2007]
[1642562205883,0.7927154,3155.8,3155.2,2.69909555]
[1642562206080,0.7927154,3155.8,3154.9,1.2007]
[1642562206081,1.7927154,3155.8,3155.3,2.69227447]
[1642562206283,1.7927154,3155.8,3155.3,0.00625266]
[1642562206484,1.7927154,3155.8,3155.4,0.00568424]
[1642562206682,0.79272,3155.6,3155.0,0.00795793]
[1642562206882,1.58545,3155.6,3155.1,2.6924989]
[1642562207082,1.58545,3155.6,3155.1,2.9924989]
[1642562207284,1.79273,3155.6,3155.2,2.69931998]
[1642562207585,1.79273,3155.6,3155.3,2.99875156]
[1642562207786,1.29364,3155.5,3155.4,2.6924989]
[1642562208024,1.29364,3155.5,3155.4,2.69818314]
[1642562209632,1.29364,3155.5,3155.4,0.00568424]
[1642562209633,4.33359072,3155.5,3155.4,0.00568424]
[1642562209931,3.33359072,3155.5,3155.4,0.00568424]
[1642562210132,4.33359072,3155.5,3155.4,0.3]
[1642562210334,4.33359072,3155.5,3155.4,0.00568424]
[1642562210335,4.33377072,3155.5,3155.4,0.00568424]
[1642562210534,0.79291,3155.2,3154.4,4.068]
[1642562210734,1.58582,3155.3,3154.3,3.32769997]
[1642562210735,4.43235831,3155.3,3154.5,2.99785705]
[1642562210932,4.43235061,3155.3,3154.6,2.69274124]
[1642562211131,2.3787223,3155.3,3154.6,2.69728862]
[1642562211331,2.3787223,3155.3,3154.7,2.6967202]
[1642562211531,2.3787223,3155.3,3154.8,2.69274124]
[1642562211775,2.3787223,3155.3,3154.8,2.99615178]
[1642562211975,2.3787223,3155.3,3154.9,2.69558335]
[1642562212177,3.17163,3155.1,3155.0,2.69274124]
[1642562212374,3.17163,3155.1,3155.0,2.69501493]
[1642562212776,4.17163,3155.1,3155.0,2.69501493]
[1642562212978,5.88703476,3155.1,3155.0,0.30227369]
[1642562213275,5.88703476,3155.1,3155.0,0.00227369]
[1642562213475,5.88703476,3155.1,3155.0,0.30227369]
[1642562213676,5.88703476,3155.1,3154.4,2.6928887]
[1642562213677,0.7929678,3154.9,3154.4,0.00568423]
[1642562213876,0.79297,3154.7,3154.5,2.6929003]
[1642562214281,0.79297,3154.7,3154.6,0.00454738]
[1642562214479,0.79297,3154.7,3154.6,2.99744768]
[1642562215629,3.99297,3154.7,3154.6,2.99744768]
[1642562218026,3.70177,3154.7,3154.6,2.99744768]
[1642562218230,3.2,3154.7,3154.6,2.99744768]
[1642562222926,1.58582,3154.8,3154.6,2.99744768]
[1642562223126,2.29332,3154.8,3154.6,0.30454738]
[1642562223330,2.29332,3154.8,3154.7,0.00397896]
[1642562223727,1.29332,3154.8,3154.7,0.00397896]
[1642562227978,1.29332,3154.8,3154.7,2.69676064]
[1642562228178,0.99772,3154.8,3154.7,2.69676064]
[1642562229285,0.99772,3154.8,3154.7,0.00397896]
[1642562229685,0.99772,3154.8,3154.7,2.6967093]
[1642562230087,0.99772,3154.8,3154.7,2.69677165]
[1642562233233,0.70602,3154.8,3154.7,2.69677165]
[1642562233433,0.37936515,3155.1,3154.7,2.69677165]
[1642562233436,0.79275,3155.1,3154.7,2.69677165]
[1642562233638,1.58760399,3155.7,3154.7,2.69677165]
[1642562233639,1.58760399,3155.7,3154.8,2.69279269]
[1642562233832,1.58760399,3155.7,3154.8,5.60632916]
[1642562234032,0.00113685,3155.6,3154.9,2.6956348]
[1642562234285,0.00113685,3155.6,3154.9,2.9956348]
[1642562234487,0.00113685,3155.6,3155.0,2.69506638]
[1642562234488,1.58535,3155.5,3155.0,2.69506638]
[1642562234684,0.79269,3155.5,3155.0,2.69506638]
[1642562234884,0.79269,3155.5,3155.1,0.00170527]
[1642562235085,0.79269,3155.5,3155.1,2.69449796]
[1642562235485,0.79269,3155.5,3155.2,0.00113684]
[1642562235685,0.79269,3155.5,3155.2,2.69392953]
[1642562235686,0.7927,3155.3,3155.2,2.69392953]
[1642562235886,0.7927,3155.3,3155.2,2.99392953]
[1642562238326,0.4979,3155.3,3155.2,2.99392953]
[1642562242378,0.4979,3155.3,3155.2,0.30113684]
[1642562242980,0.4979,3155.3,3155.2,0.00113684]
[1642562243379,0.2051,3155.3,3154.8,2.99595331]
[1642562243581,0.79276,3155.2,3154.9,2.69538488]
[1642562243781,0.79276,3155.1,3154.9,2.69538488]
[1642562243980,0.79276,3155.1,3155.0,2.69481646]
[1642562248630,0.48926,3155.1,3155.0,2.69481646]
[1642562252084,0.37479022,3155.3,3155.0,2.69481646]
[1642562252283,0.37479022,3155.3,3155.0,4.36222518]
[1642562252482,0.37479022,3155.3,3155.1,2.69424804]
[1642562252683,0.37479022,3155.3,3155.1,2.99424804]
[1642562252930,0.37479022,3155.3,3155.2,4.3683258]
[1642562253130,0.37479022,3155.3,3155.2,4.6683258]
[1642562253330,0.37479022,3155.3,3155.2,2.99367961]
[1642562253529,0.37479022,3155.3,3155.2,4.73076167]
[1642562253732,0.07709022,3155.3,3155.2,2.99367961]
[1642562253929,0.07709022,3155.3,3155.2,4.7205343]
[1642562254129,0.07709022,3155.3,3155.2,4.74797514]
[1642562256035,0.07709022,3155.3,3155.2,4.71617349]
[1642562258878,0.57365022,3155.5,3155.3,2.9]
[1642562259078,0.57365022,3155.5,3155.4,2.99254277]
[1642562263332,0.00113685,3155.6,3155.4,2.99254277]
[1642562263734,0.00113685,3155.6,3155.5,2.69254277]
[1642562263934,0.50194685,3155.7,3155.5,2.99254277]
[1642562264190,0.50194685,3155.7,3155.6,2.69254277]
[1642562266185,0.50194685,3155.7,3155.6,3.09254277]
[1642562268828,1.79262,3155.9,3155.6,3.09254277]
[1642562268829,0.79256,3155.9,3155.6,4.69432771]
[1642562269030,2.37763,3156.3,3155.7,6.49254277]
[1642562269031,1.58507,3156.3,3155.7,6.49254277]
[1642562269234,6.59135043,3156.7,3155.7,6.49254277]
[1642562269235,0.00113685,3155.8,3155.7,5.46012439]
[1642562269435,0.00113685,3155.8,3155.7,4.1]
[1642562269632,0.00568423,3156.6,3155.7,4.1]
[1642562270031,1.58715043,3156.7,3155.7,4.1]
[1642562270032,0.00511581,3156.5,3155.7,4.1]
[1642562270434,0.00454739,3156.4,3155.7,4.1]
[1642562270831,0.79241,3156.5,3155.7,4.1]
[1642562270832,0.00397896,3156.3,3155.7,4.1]
[1642562271032,0.00397896,3156.3,3155.8,1.92471356]
[1642562271335,0.00341054,3156.2,3155.8,1.92471356]
[1642562271534,0.00341054,3156.2,3155.8,2.22471356]
[1642562271786,0.00284212,3156.1,3155.8,2.22471356]
[1642562272185,0.00227369,3156.0,3155.8,0.3]
[1642562272585,0.00170527,3155.9,3155.7,4.4]
[1642562272989,1.58494,3156.5,3155.7,4.1]
[1642562272990,0.79249,3156.2,3155.7,4.1]
[1642562273389,0.00284212,3156.1,3155.7,4.1]
[1642562273591,0.00284212,3156.1,3155.7,4.4]
[1642562273789,0.00227369,3156.0,3155.7,4.4]
[1642562274191,0.79251,3156.4,3155.8,5.1]
[1642562274192,0.49658369,3156.4,3155.8,5.1]
[1642562274390,0.49658369,3156.4,3155.8,5.10113684]
[1642562274591,0.79253,3156.0,3155.8,5.10113684]
[1642562276835,0.79253,3156.0,3155.8,0.00113684]
[1642562277435,0.79253,3156.0,3155.7,0.00170527]
[1642562279190,0.50053,3156.0,3155.7,0.00170527]
[1642562280576,0.50053,3156.0,3155.7,0.00170527]
[1642562282073,0.34464056,3155.9,3155.7,0.00170527]
[1642562282282,5.29266,3155.8,3155.7,0.00170527]
[1642562282478,4.88545604,3155.8,3155.7,0.00170527]
[1642562282677,0.04756839,3155.5,3154.3,1.1274]
[1642562282920,2.0,3155.5,3154.3,1.1274]
[1642562283125,1.0,3155.5,3154.4,0.0073895]
[1642562283419,0.79286,3155.3,3154.4,0.0073895]
[1642562283619,0.79286,3155.3,3154.5,1.51499896]
[1642562284025,1.58565,3155.3,3154.6,0.00625265]
[1642562284224,1.49801,3155.3,3154.7,2.69269154]
[1642562284424,0.79287,3155.1,3154.7,2.69269154]
[1642562284624,0.79287,3155.1,3154.8,0.00511581]
[1642562284824,0.79287,3155.1,3154.9,2.69269154]
[1642562285125,0.79287,3155.1,3155.0,0.00397896]
[1642562285323,0.79287,3155.1,3155.0,2.6966705]
[1642562285524,2.3786,3155.1,3155.0,2.6966705]
[1642562286024,3.3786,3155.1,3155.0,2.6966705]
[1642562286224,3.3786,3155.1,3155.0,3.0966705]
[1642562287763,3.3786,3155.1,3155.0,2.6966705]
[1642562289468,3.0807,3155.1,3155.0,2.6966705]
[1642562291424,3.5357,3155.1,3155.0,2.6966705]
[1642562291927,1.74283,3155.1,3155.0,2.9966705]
[1642562292321,1.28783,3155.1,3155.0,2.9966705]
[1642562294568,0.99243,3155.1,3155.0,2.9966705]
[1642562295369,0.19956,3155.1,3155.0,2.9966705]
[1642562297675,0.19956,3155.1,3154.5,1.27115919]
[1642562297921,0.65456,3155.1,3154.5,1.27115919]
[1642562298118,0.65456,3155.1,3154.6,0.00227369]